lending/lending_fUSD_20240911
["ID","MTS","AMOUNT","RATE_DAILY","PERIOD"]
[337743646,1726023032488,-59.28280578,0.00012849,2]
[337743647,1726023032499,-90.71719422,0.00012849,2]
[337743648,1726023032508,-412.19003473,0.00012849,2]
[337743649,1726023032519,-1419.54767246,0.00012849,2]
[337743650,1726023032531,-1263.05227684,0.00012849,2]
[337743651,1726023032543,-307.8334,0.00012849,2]
[337743652,1726023032555,-251.03914311,0.00012849,2]
[337743653,1726023032574,-516.47725402,0.00012849,2]
[337743654,1726023032586,-4698.23516236,0.00012849,2]
[337743655,1726023032595,-3695.39,0.00012854,2]
[337743656,1726023032605,-3808.71,0.00012871,2]
[337743657,1726023032615,-3809.68,0.00012904,2]
[337743658,1726023032624,-3700.53,0.00012972,2]
[337743659,1726023032634,-1100.0,0.00013,2]
[337743660,1726023032643,-541.75,0.00013,2]
[337743661,1726023032653,-3722.07,0.00013054,2]
[337743662,1726023032662,-3761.41,0.00013144,2]
[337743663,1726023032671,-151.0,0.00013151,2]
[337743664,1726023032680,-23890.0,0.00013174,2]
[337743665,1726023032690,-465.41,0.00013207,2]
[337743666,1726023032699,-3801.34,0.00013242,2]
[337743667,1726023032708,-374.59,0.00013255,2]
[337743668,1726023032718,-250.0,0.00013264,2]
[337743669,1726023032728,-150.0,0.0001327,2]
[337743670,1726023032737,-2566.93,0.00013271,2]
[337743671,1726023032748,-155.4,0.00013292,2]
[337743672,1726023032758,-3744.29,0.00013351,2]
[337743673,1726023032767,-237.7,0.00013418,2]
[337743675,1726023032776,-1000.0,0.00013426,2]
[337743677,1726023032786,-152.01,0.00013468,2]
[337743678,1726023032795,-173.79,0.00013478,2]
[337743679,1726023032804,-1261.0,0.00013478,2]
[337743680,1726023032813,-448.0,0.00013478,2]
[337743681,1726023032824,-624.0,0.00013478,2]
[337743682,1726023032833,-1547.0,0.00013478,2]
[337743683,1726023032842,-557.0,0.00013478,2]
[337743684,1726023032851,-150.0,0.00013478,2]
[337743685,1726023032860,-931.0,0.00013478,2]
[337743686,1726023032869,-811.0,0.00013478,2]
[337743687,1726023032878,-1904.431,0.00013478,2]
[337743688,1726023032888,-553.0,0.00013478,2]
[337743689,1726023032897,-1119.0,0.00013478,2]
[337743690,1726023032906,-3350.45,0.00013478,2]
[337743691,1726023032916,-805.0,0.00013478,2]
[337743692,1726023032925,-270.276,0.00013478,2]
[337743693,1726023032935,-248.373,0.00013478,2]
[337743694,1726023032944,-150.0,0.00013478,2]
[337743695,1726023032954,-150.0,0.00013478,2]
[337743696,1726023032963,-9310.0,0.00013478,2]
[337743697,1726023032972,-540.011,0.00013478,2]
[337743698,1726023032981,-150.0,0.00013478,2]
[337743699,1726023032992,-377.51,0.00013527,2]
[337743700,1726023033002,-496.02,0.00013699,2]
[337743701,1726023033011,-500.0,0.00013699,2]
[337743702,1726023033020,-200.0,0.00013699,2]
[337743703,1726023033030,-2751.0,0.00013699,2]
[337743704,1726023033040,-153.37,0.00013699,2]
[337743705,1726023033050,-263.04,0.00013699,2]
[337743706,1726023033059,-2500.0,0.000137,2]
[337743707,1726023033068,-3952.4661,0.000137,2]
[337743708,1726023033077,-1000.0,0.0001378,2]
[337743709,1726023033087,-445.6164,0.00013863,2]
[337743710,1726023033097,-247.3215,0.00013867,2]
[337743711,1726023033106,-1154.908,0.0001388,2]
[337743712,1726023033115,-573.0,0.000139,2]
[337743713,1726023033124,-719.0,0.000139,2]
[337743714,1726023033133,-416.48,0.00014055,2]
[337743715,1726023033142,-517.660996,0.00014247,2]
[337743716,1726023033151,-3713.55,0.00014354,2]
[337743717,1726023033160,-496.02,0.00014384,2]
[337743718,1726023033169,-255.0,0.00014385,2]
[337743719,1726023033179,-1500.0,0.00014765,2]
[337743720,1726023033189,-180.05475274,0.00014785,2]
[337743721,1726023033198,-419.24852099,0.00014787,2]
[337743722,1726023033207,-609.25405349,0.00014788,2]
[337743723,1726023033217,-3149.31533307,0.00014798,2]
[337743724,1726023033226,-609.25405342,0.000148,2]
[337743725,1726023033235,-609.25405342,0.00014813,2]
[337743726,1726023033246,-609.25405342,0.00014825,2]
[337743727,1726023033256,-609.25405342,0.00014838,2]
[337743728,1726023033266,-150.0,0.00014845,2]
[337743729,1726023033276,-1845.2957,0.0001485,2]
[337743730,1726023033286,-609.25405342,0.0001485,2]
[337743731,1726023033295,-1500.0,0.0001486,2]
[337743732,1726023033304,-256.86550357,0.00014863,2]
[337743733,1726023033317,-352.38854985,0.00014863,2]
[337743734,1726023033326,-164.03,0.00014865,3]
[337743735,1726023033336,-93.26145013,0.00014875,2]
[337743736,1726023033347,-285.35949088,0.00014875,2]
[337743737,1726023033359,-230.63311241,0.00014875,2]
[337743738,1726023033369,-369.36688759,0.00014888,2]
[337743739,1726023033381,-239.88716583,0.00014888,2]
[337743740,1726023033390,-2732.86718666,0.00014888,2]
[337743741,1726023033401,-1390.89940899,0.00014888,2]
[337743742,1726023033412,-1724.39460435,0.00014888,2]
[337743743,1726023033421,-28.57501118,0.00014888,2]
[337743744,1726023033433,-996.92391755,0.00014888,2]
[337743745,1726023033444,-788.03913701,0.00014888,2]
[337743746,1726023033455,-700.17263426,0.00014888,2]
[337743747,1726023033464,-492.13,0.0001489,3]
[337743748,1726023033474,-228.71432325,0.00014898,2]
[337743749,1726023033483,-2334.30037212,0.00014898,2]
[337743750,1726023033493,-228.71432324,0.00014899,2]
[337743751,1726023033502,-150.0,0.000149,2]
[337743752,1726023033512,-320.5062,0.000149,2]
[337743753,1726023033521,-1108.1,0.000149,31]
[337743754,1726023033532,-1108.1,0.000149,31]
[337743755,1726023033543,-1108.1,0.000149,31]
[337743756,1726023033563,-1108.1,0.000149,31]
[337743757,1726023033574,-1108.1,0.000149,31]
[337743758,1726023033585,-1108.1,0.000149,31]
[337743759,1726023033595,-1108.1,0.000149,31]
[337743760,1726023033605,-1108.1,0.000149,31]
[337743761,1726023033616,-1108.1,0.000149,31]
[337743762,1726023033627,-1108.1,0.000149,31]
[337743763,1726023033638,-1108.1,0.000149,31]
[337743764,1726023033648,-1108.1,0.000149,31]
[337743765,1726023033659,-1108.1,0.000149,31]
[337743766,1726023033670,-1108.1,0.000149,31]
[337743767,1726023033680,-1108.1,0.000149,31]
[337743768,1726023033689,-1108.1,0.000149,31]
[337743769,1726023033699,-150.0,0.000149,2]
[337743770,1726023033710,-609.25405342,0.000149,2]
[337743771,1726023033720,-228.71432324,0.000149,2]
[337743772,1726023033729,-150.0,0.00014932,2]
[337743773,1726023033956,-150.0,0.0001496,2]
[337743774,1726023033966,-2289.67,0.00014968,2]
[337743775,1726023033976,-2289.67,0.00014968,2]
[337743776,1726023033985,-2289.67,0.00014968,2]
[337743777,1726023033996,-2289.67,0.00014968,2]
[337743778,1726023034006,-503.8626189,0.00014973,2]
[337743779,1726023034016,-502.91215625,0.00014973,2]
[337743780,1726023034026,-502.08720999,0.00014973,2]
[337743781,1726023034036,-150.0,0.00014973,2]
[337743782,1726023034045,-500.0,0.00014977,2]
[337743783,1726023034055,-500.0,0.00014977,2]
[337743784,1726023034065,-500.0,0.00014977,2]
[337743785,1726023034074,-500.0,0.00014977,2]
[337743786,1726023034084,-503.5888188,0.00014977,2]
[337743787,1726023034093,-500.0,0.00014977,2]
[337743788,1726023034103,-235.50007077,0.00014977,2]
[337743789,1726023034112,-500.0,0.00014977,2]
[337743790,1726023034121,-500.0,0.00014977,2]
[337743791,1726023034131,-500.0,0.00014977,2]
[337743792,1726023034141,-574.74627452,0.00014977,2]
[337743793,1726023034151,-500.0,0.00014977,2]
[337743794,1726023034160,-500.0,0.00014977,2]
[337743795,1726023034170,-500.0,0.00014977,2]
[337743796,1726023034180,-500.0,0.00014977,2]
[337743797,1726023034190,-599.97995713,0.00014977,2]
[337743798,1726023034199,-500.0,0.00014977,2]
[337743799,1726023034209,-500.0,0.00014977,2]
[337743800,1726023034218,-500.0,0.00014977,2]
[337743801,1726023034227,-500.0,0.00014977,2]
[337743802,1726023034237,-500.0,0.00014977,2]
[337743803,1726023034251,-500.0,0.00014977,2]
[337743804,1726023034260,-500.0,0.00014977,2]
[337743805,1726023034269,-500.0,0.00014977,2]
[337743806,1726023034279,-500.0,0.00014977,2]
[337743807,1726023034289,-500.0,0.00014977,2]
[337743808,1726023034298,-500.0,0.00014977,2]
[337743809,1726023034307,-500.0,0.00014977,2]
[337743810,1726023034317,-500.0,0.00014977,2]
[337743811,1726023034326,-500.0,0.00014977,2]
[337743812,1726023034336,-500.0,0.00014977,2]
[337743813,1726023034346,-500.0,0.00014977,2]
[337743814,1726023034355,-500.0,0.00014977,2]
[337743815,1726023034365,-23633.254657,0.00014978,3]
[337743816,1726023034377,-28443.27290558,0.00014978,3]
[337743817,1726023034388,-13698.38536391,0.00014978,3]
[337743818,1726023034399,-684.71908266,0.00014978,3]
[337743819,1726023034411,-270.26587227,0.00014978,3]
[337743820,1726023034438,-1157.16,0.00014978,3]
[337743827,1726023038526,-5860.0,0.00013478,2]
[337743828,1726023038537,-150.0,0.00013478,2]
[337743829,1726023038548,-501.07676179,0.00014973,2]
[337743830,1726023038559,-946.20892831,0.00014978,3]
[337743831,1726023038571,-1849.01762945,0.00014978,3]
[337743832,1726023038583,-2688.78329172,0.00014978,3]
[337743833,1726023038595,-7015.51017204,0.00014978,3]
[337743834,1726023038607,-4888.27761967,0.00014978,3]
[337743835,1726023038619,-2740.23574316,0.00014978,3]
[337743836,1726023038631,-329.87709463,0.00014978,3]
[337743837,1726023038643,-2730.40354718,0.00014978,3]
[337743838,1726023038655,-313.999999,0.00014978,3]
[337743839,1726023038667,-1114.47748706,0.00014978,3]
[337743841,1726023038753,-815.0,0.00014978,3]
[337743842,1726023038766,-1194.1931649,0.00014978,3]
[337743843,1726023038777,-1752.51692357,0.00014978,3]
[337743844,1726023038790,-3267.93013587,0.00014978,3]
[337743845,1726023038803,-1007.31983347,0.00014978,3]
[337743846,1726023038815,-979.09535715,0.00014978,3]
[337743849,1726023040267,-1079.0,0.00013478,2]
[337743850,1726023040277,-134707.5706964,0.00014978,3]
[337743851,1726023040287,-18964.7306598,0.00014978,3]
[337743852,1726023040297,-2289.67,0.00014978,2]
[337743853,1726023040306,-19685.6229588,0.0001498,3]
[337743854,1726023040316,-3792.94613196,0.0001498,3]
[337743855,1726023040325,-359.51789329,0.00014982,2]
[337743856,1726023040335,-9842.81147938,0.00014988,3]
[337743857,1726023040345,-1896.47306598,0.00014988,3]
[337743858,1726023040354,-9842.81147938,0.00014988,3]
[337743859,1726023040364,-34136.5151876,0.00014988,3]
[337743860,1726023040373,-1676.08726005,0.00014988,2]
[337743861,1726023040383,-1676.08726005,0.00014988,2]
[337743862,1726023040393,-1000.2483204,0.0001499,2]
[337743863,1726023040402,-1000.2483204,0.0001499,2]
[337743864,1726023040412,-1000.2483204,0.0001499,2]
[337743865,1726023040421,-1000.2483204,0.0001499,2]
[337743866,1726023040431,-1000.2483204,0.0001499,2]
[337743867,1726023040440,-7136.8033796,0.0001499,2]
[337743868,1726023040450,-7136.8033796,0.0001499,2]
[337743869,1726023040460,-7136.8033796,0.0001499,2]
[337743870,1726023040470,-7136.8033796,0.0001499,2]
[337743871,1726023040479,-7136.8033796,0.0001499,2]
[337743872,1726023040489,-1676.08726005,0.0001499,2]
[337743873,1726023040501,-618.23139628,0.00014993,2]
[337743874,1726023040511,-7136.8033796,0.00014993,2]
[337743875,1726023040521,-150.0,0.00014997,2]
[337743876,1726023040531,-3792.17,0.00014998,2]
[337743877,1726023040542,-7650.8390224,0.00014998,2]
[337743878,1726023040552,-20205.39923401,0.00014998,2]
[337743879,1726023040567,-1730.84596,0.00014998,2]
[337743880,1726023040579,-5373.59318804,0.00014998,2]
[337743881,1726023040591,-253.44497898,0.00014998,2]
[337743882,1726023040602,-556.86577081,0.00014998,2]
[337743883,1726023040614,-268.51399579,0.00014998,2]
[337743884,1726023040630,-41875.84374063,0.00014998,2]
[337743885,1726023040641,-7063.24876752,0.00014998,2]
[337743886,1726023040653,-7312.89457521,0.00014998,2]
[337743887,1726023040699,-509174.3149819,0.00014998,2]
[337743888,1726023040711,-1367.59375518,0.00014998,2]
[337743889,1726023040723,-525.37283014,0.00014998,2]
[337743890,1726023040734,-504.152,0.00014998,2]
[337743896,1726023044291,-3563.9999998,0.00014998,2]
[337743898,1726023046491,-163.70697135,0.00014878,2]
[337743899,1726023046502,-1758.81030642,0.00014998,2]
[337743925,1726023078156,500.0,0.00028,120]
[337743926,1726023078278,500.0,0.00028,120]
[337743927,1726023078569,500.0,0.00028,120]
[337743928,1726023078839,500.0,0.00028,120]
[337743929,1726023079158,500.0,0.00028,120]
[337743930,1726023079412,500.0,0.00028,120]
[337743931,1726023079693,500.0,0.00028,120]
[337743932,1726023080009,500.0,0.00028,120]
[337743933,1726023080246,384.56469973,0.00028,120]
[337743934,1726023093576,500.0,0.00028,120]
[337743935,1726023094348,500.0,0.00028,120]
[337743936,1726023094969,500.0,0.00028,120]
[337743937,1726023095613,500.0,0.00028,120]
[337743938,1726023095885,302.35683615,0.00028,120]
[337743939,1726023097023,500.0,0.00028,120]
[337743940,1726023097285,500.0,0.00028,120]
[337743941,1726023097559,500.0,0.00028,120]
[337743942,1726023097824,500.0,0.00028,120]
[337743943,1726023098094,161.29851814,0.00028,120]
[337743944,1726023208469,329.4781453,0.00028,120]
[337743945,1726023289549,500.0,0.00028,120]
[337743946,1726023290002,500.0,0.00028,120]
[337743947,1726023290086,500.0,0.00028,120]
[337743948,1726023290344,636.26221459,0.00028,120]
[337743949,1726023396747,500.0,0.00028,120]
[337743950,1726023397004,500.0,0.00028,120]
[337743951,1726023397297,325.52995471,0.00028,120]
[337743952,1726023431090,358.11,0.00011756,2]
[337743953,1726023558486,557.23840534,0.00028,120]
[337743954,1726023688366,570.78679151,0.00028,120]
[337743955,1726023693835,500.0,0.00028,120]
[337743956,1726023756603,500.0,0.00028,120]
[337743957,1726023792258,500.0,0.00028,120]
[337743958,1726023793009,500.0,0.00028,120]
[337743959,1726023793065,536.8337426,0.00028,120]
[337743960,1726023913836,340.2,0.00011725,2]
[337743963,1726024105593,305.76,0.00010959,2]
[337743965,1726024232398,-505.61,0.00013,2]
[337743967,1726024232408,-151.0,0.00013151,2]
[337743968,1726024232418,-699.647,0.00013152,2]
[337743969,1726024232428,-3561.29034119,0.00013152,2]
[337743972,1726024232570,-45.32065881,0.00013152,2]
[337743973,1726024232580,-150.0,0.00013152,2]
[337743974,1726024232589,-1079.0,0.00013152,2]
[337743975,1726024232599,-300.0,0.00013477,2]
[337743976,1726024232608,-150.0,0.00013478,2]
[337743977,1726024232617,-150.0,0.00013478,2]
[337743978,1726024232627,-624.0,0.00013478,2]
[337743979,1726024232636,-448.0,0.00013478,2]
[337743980,1726024232645,-1261.0,0.00013478,2]
[337743981,1726024232655,-517.61544036,0.00013478,2]
[337743982,1726024232666,-1029.38455964,0.00013478,2]
[337743983,1726024232676,-811.0,0.00013478,2]
[337743984,1726024232685,-931.0,0.00013478,2]
[337743985,1726024232695,-557.0,0.00013478,2]
[337743986,1726024232709,-553.0,0.00013478,2]
[337743987,1726024232718,-1901.0,0.00013478,2]
[337743988,1726024232727,-795.1809789,0.00013478,2]
[337743989,1726024232740,-9.8190211,0.00013478,2]
[337743990,1726024232749,-248.0,0.00013478,2]
[337743991,1726024232759,-1119.0,0.00013478,2]
[337743992,1726024232768,-1482.09027221,0.00013478,2]
[337743993,1726024232779,-727.5020417,0.00013478,2]
[337743994,1726024232791,-1133.40768609,0.00013478,2]
[337743995,1726024232800,-1000.0,0.00013559,2]
[337743996,1726024232810,-187.29,0.00013623,2]
[337743997,1726024232819,-250.0,0.00013627,2]
[337743998,1726024232829,-178.76,0.00013648,2]
[337743999,1726024232838,-190.16,0.00013665,2]
[337744000,1726024232849,-200.0,0.00013699,2]
[337744001,1726024232859,-208.0246796,0.00013699,2]
[337744002,1726024232870,-236.5953204,0.00013699,2]
[337744003,1726024232880,-219.2,0.00013699,2]
[337744004,1726024232890,-2751.0,0.00013699,2]
[337744005,1726024232901,-901.73569974,0.000137,2]
[337744006,1726024232910,-182.16,0.00013881,2]
[337744007,1726024232920,-3817.55,0.00013881,2]
[337744008,1726024232929,-333.31,0.00013945,2]
[337744009,1726024232938,-340.2,0.00013989,2]
[337744010,1726024232948,-150.0,0.00014,2]
[337744011,1726024232957,-1246.71143807,0.00014008,2]
[337744012,1726024232970,-2472.91856193,0.00014008,2]
[337744013,1726024232980,-3692.24,0.00014069,2]
[337744014,1726024232990,-173.65,0.00014085,2]
[337744015,1726024233001,-3716.57,0.00014157,2]
[337744016,1726024233010,-431.81,0.00014192,2]
[337744017,1726024233019,-150.0,0.00014192,2]
[337744018,1726024233029,-11.00189427,0.00014192,2]
[337744019,1726024233040,-139.62810573,0.00014192,2]
[337744020,1726024233049,-3721.02,0.00014267,2]
[337744021,1726024233058,-922.53580983,0.00014419,2]
[337744022,1726024238436,-569.5689955,0.00014419,2]
[337744023,1726024238604,-349.87799986,0.00014419,2]
[337744024,1726024238779,-1491.22552383,0.00014419,2]
[337744038,1726024240896,-447.31167098,0.00014419,2]
[337744039,1726024240906,-171.81232902,0.00014511,2]
[337744040,1726024243547,-200.0,0.00013948,2]
[337744041,1726024243557,-268.42591794,0.00014511,2]
[337744042,1726024243570,-374.72962927,0.00014511,2]
[337744043,1726024244644,-2865.66212377,0.00014511,2]
[337744044,1726024244653,-3762.56,0.00014613,2]
[337744045,1726024244662,-333.31,0.00014642,2]
[337744046,1726024244672,-3770.95,0.00014728,2]
[337744047,1726024244681,-280.11799796,0.00014773,2]
[337744048,1726024244693,-139.88200204,0.00014773,2]
[337744049,1726024244702,-155.10254,0.0001485,2]
[337744050,1726024244713,-15.56014901,0.00014857,2]
[337744051,1726024244725,-3744.37985099,0.00014857,2]
[337744052,1726024244735,-1767.33373369,0.00014873,2]
[337744053,1726024244746,-40.76006631,0.00014873,2]
[337744054,1726024244756,-163.70697134,0.0001489,2]
[337744055,1726024244765,-163.70697134,0.00014892,2]
[337744056,1726024244775,-163.70697134,0.00014893,2]
[337744057,1726024244784,-163.70697134,0.00014895,2]
[337744058,1726024244794,-163.70697134,0.00014897,2]
[337744059,1726024244803,-156.92210109,0.00014898,2]
[337744060,1726024244812,-1615.18476933,0.00014898,2]
[337744061,1726024246559,-4691.18203615,0.00014898,2]
[337744062,1726024246572,-300.0,0.00014898,2]
[337744063,1726024246583,-893.63319452,0.00014898,2]
[337744065,1726024246593,-163.70697134,0.00014898,2]
[337744066,1726024246602,-320.5062,0.000149,2]
[337744067,1726024246612,-611.01841418,0.000149,31]
[337744068,1726024246623,-319.87158582,0.000149,31]
[337744069,1726024246633,-596.06842051,0.000149,31]
[337744070,1726024246644,-334.82157949,0.000149,31]
[337744071,1726024246654,-425.37842051,0.000149,31]
[337744072,1726024246665,-505.51157949,0.000149,31]
[337744073,1726024246675,-63.27842051,0.000149,31]
[337744074,1726024246755,-663.41516616,0.000149,31]
[337744075,1726024246766,-204.19641333,0.000149,31]
[337744076,1726024246776,-66.39704565,0.000149,31]
[337744077,1726024246788,-864.49295435,0.000149,31]
[337744078,1726024246797,-562.19746347,0.000149,31]
[337744079,1726024246809,-368.69253653,0.000149,31]
[337744080,1726024246818,-930.89,0.000149,31]
[337744081,1726024246828,-930.89,0.000149,31]
[337744082,1726024246837,-930.89,0.000149,31]
[337744083,1726024246847,-930.89,0.000149,31]
[337744084,1726024246856,-930.89,0.000149,31]
[337744085,1726024246866,-930.89,0.000149,31]
[337744086,1726024246875,-930.89,0.000149,31]
[337744087,1726024246884,-930.89,0.000149,31]
[337744088,1726024246894,-930.89,0.000149,31]
[337744089,1726024246904,-930.89,0.000149,31]
[337744090,1726024246913,-150.0,0.000149,2]
[337744091,1726024246923,-306.432,0.000149,2]
[337744092,1726024246933,-2998.26745732,0.000149,2]
[337744093,1726024246941,-163.70697134,0.000149,2]
[337744094,1726024246950,-157.46541379,0.000149,2]
[337744095,1726024246960,-350.3345492,0.000149,2]
[337744096,1726024246969,-3752.3,0.00014924,2]
[337744097,1726024246979,-805.97,0.00014968,3]
[337744098,1726024246989,-805.95,0.00014968,3]
[337744099,1726024246998,-500.0,0.00014977,2]
[337744100,1726024247007,-345.56886947,0.00014977,2]
[337744102,1726024538638,787.1,0.00028,120]
[337744103,1726024538922,787.1,0.00028,120]
[337744104,1726024539170,787.1,0.00028,120]
[337744105,1726024539454,787.1,0.00028,120]
[337744106,1726024539724,787.1,0.00028,120]
[337744107,1726024540001,787.1,0.00028,120]
[337744108,1726024540262,787.1,0.00028,120]
[337744109,1726024540613,787.1,0.00028,120]
[337744110,1726024540874,787.1,0.00028,120]
[337744111,1726024541153,787.1,0.00028,120]
[337744112,1726024541455,787.1,0.00028,120]
[337744113,1726024541713,787.1,0.00028,120]
[337744114,1726024542007,787.1,0.00028,120]
[337744115,1726024542276,787.1,0.00028,120]
[337744116,1726024542540,787.1,0.00028,120]
[337744117,1726024542843,787.1,0.00028,120]
[337744118,1726024543100,787.1,0.00028,120]
[337744119,1726024543391,787.1,0.00028,120]
[337744120,1726024543662,787.1,0.00028,120]
[337744121,1726024543956,787.1,0.00028,120]
[337744122,1726024544262,787.1,0.00028,120]
[337744123,1726024544559,787.1,0.00028,120]
[337744124,1726024544841,787.1,0.00028,120]
[337744125,1726024545124,787.25085143,0.00028,120]
[337744126,1726024674264,152.21,0.00010959,2]
[337744127,1726024865003,3000.0,0.00026,60]
[337744128,1726024918862,2691.26,0.000145,60]
[337744129,1726024945332,345.34,0.00011425,2]
[337744130,1726025154842,167.5376347,6.94e-05,2]
[337744137,1726025272020,283.40077145,0.00028,120]
[337744147,1726025431796,-6823.1571357,0.0001218,2]
[337744148,1726025431805,-500.0,0.00012938,2]
[337744149,1726025431814,-364.82,0.00012977,2]
[337744150,1726025431823,-649.12,0.00013,2]
[337744151,1726025431832,-250.0,0.00013033,2]
[337744152,1726025431841,-830.48431709,0.00013034,2]
[337744153,1726025431850,-800.0,0.00013034,2]
[337744154,1726025431859,-178.76,0.00013049,2]
[337744155,1726025431868,-300.0,0.00013061,2]
[337744156,1726025431877,-2000.0,0.00013062,2]
[337744157,1726025431886,-158.47236761,0.00013151,2]
[337744158,1726025431895,-250.0,0.00013277,2]
[337744159,1726025431903,-12346.04,0.00013284,2]
[337744160,1726025431912,-200.0,0.00013285,2]
[337744161,1726025431922,-250.0,0.00013311,2]
[337744162,1726025431931,-190.66,0.00013337,2]
[337744163,1726025431940,-200.0,0.00013347,2]
[337744164,1726025431949,-158.68,0.00013364,2]
[337744165,1726025431958,-499.99,0.00013367,2]
[337744166,1726025431967,-158.68,0.00013368,2]
[337744167,1726025431975,-158.68,0.00013373,2]
[337744168,1726025431985,-158.68,0.00013377,2]
[337744169,1726025431994,-158.68,0.00013381,2]
[337744170,1726025432003,-158.68,0.00013385,2]
[337744171,1726025432012,-158.68,0.00013389,2]
[337744172,1726025432021,-158.68,0.00013393,2]
[337744173,1726025432030,-158.68,0.00013398,2]
[337744174,1726025432039,-150.0,0.00013398,2]
[337744175,1726025432048,-158.68,0.00013402,2]
[337744176,1726025432057,-158.68,0.00013406,2]
[337744177,1726025432066,-174.77,0.00013409,2]
[337744178,1726025432075,-158.68,0.0001341,2]
[337744179,1726025432084,-158.68,0.00013414,2]
[337744180,1726025432093,-158.68,0.00013418,2]
[337744181,1726025432102,-158.68,0.00013423,2]
[337744182,1726025432112,-158.68,0.00013427,2]
[337744183,1726025432121,-158.68,0.00013431,2]
[337744184,1726025432130,-811.0,0.00013478,2]
[337744185,1726025432139,-557.0,0.00013478,2]
[337744186,1726025432148,-931.0,0.00013478,2]
[337744187,1726025432158,-553.0,0.00013478,2]
[337744188,1726025432167,-1901.0,0.00013478,2]
[337744189,1726025432176,-248.0,0.00013478,2]
[337744190,1726025432185,-592.138,0.00013478,2]
[337744191,1726025432195,-1119.0,0.00013478,2]
[337744192,1726025432204,-3343.0,0.00013478,2]
[337744193,1726025432213,-624.0,0.00013478,2]
[337744194,1726025432223,-445.463,0.00013478,2]
[337744195,1726025432233,-150.0,0.00013478,2]
[337744196,1726025432242,-1261.0,0.00013478,2]
[337744197,1726025432251,-345.34,0.00013689,2]
[337744198,1726025432261,-182.66,0.00013699,2]
[337744199,1726025432270,-2751.0,0.00013699,2]
[337744200,1726025432279,-200.0,0.00013699,2]
[337744201,1726025432288,-278.47,0.00013699,2]
[337744202,1726025432298,-195.5,0.00013699,2]
[337744203,1726025432307,-10958.19186672,0.0001379,2]
[337744204,1726025432316,-422.19,0.00014055,2]
[337744205,1726025432326,-150.0,0.00014192,2]
[337744206,1726025432335,-150.0,0.00014275,2]
[337744207,1726025432344,-420.0,0.00014322,2]
[337744208,1726025432353,-72.84971601,0.00014384,2]
[337744209,1726025432365,-205.62028399,0.00014384,2]
[337744210,1726025432375,-800.0,0.00014663,2]
[337744211,1726025432384,-414.44513126,0.00014721,2]
[337744212,1726025432393,-174.59,0.00014774,2]
[337744213,1726025432403,-1171.66862902,0.0001479,2]
[337744215,1726025437918,-1547.0,0.00013478,2]
[337744216,1726025437929,-345.98,0.00014,3]
[337744217,1726025437939,-328.33137098,0.0001479,2]
[337744218,1726025437948,-770.54408519,0.000148,2]
[337744219,1726025437958,-150.0,0.00014827,2]
[337744220,1726025437968,-153.34329,0.00014827,2]
[337744221,1726025437978,-1666.99853,0.0001483,2]
[337744222,1726025437989,-23117.68260876,0.0001489,2]
[337744223,1726025437999,-245.146,0.00014893,2]
[337744224,1726025438008,-320.5062,0.000149,2]